{"text_format":"1","workbook":"xlsx","n_sheets":1,"sheets":["inpout1"],"not_rendered":{"charts":0,"images":1,"macros":1,"external_links":1,"defined_names":7,"comments":0,"pivot_tables":0},"unopened":[],"bounds":{"document_bytes":16777216,"sheet_cells":100000,"rows_first":2000,"rows_last":500,"rows_between":2000,"halvings":0,"cell_chars":16384,"cell_head_chars":4096},"cells_cut":0,"cells_raw":0,"read":"whole","date_system":"1900"}

{"sheet":"inpout1","index":0,"n_rows":34,"n_cols":26,"rows_kept":34,"cut":false,"hidden":false,"merged":[]}
[]
["العدد",{"$f":"MAX(A:A)","v":10},"درجات الامتحان التكميلي "]
[1,2,3,4,5,6,7,8,9,10,11,12,13,14,15,16,17,18,19,20,21,22]
["الرقم","اسم الطالب","الجنس","التخصص","رقم الجلوس","الرقم السري","التربية الإسلامية","درجة الامتحان","اللغة العربية","درجة الامتحان","اللغة الإنجليزية","درجة الامتحان","تقنية المعلومات","درجة الامتحان","الرياضيات","درجة الامتحان","الفيزياء","درجة الامتحان","الكيمياء","درجة الامتحان","الاحياء","درجة الامتحان"]
[{"$f":"IF(B5<>\"\",SUBTOTAL(3,$B5:B$5),\"\")","v":1},"طالب 1","ذكر","العام",110,247,null,null," اللغة العربية","غ",null,null,"تقنية المعلومات","غ",null,null,null,null,null,null,null,null,"غائب",null,null,{"$f":"(SUMPRODUCT(($G5:$V5<>\"\")*($G5:$V5<>\"غ\"))=SUMPRODUCT(($G5:$V5<>\"\")*($G5:$V5=\"غ\")))*1","v":1}]
[{"$f":"IF(B6<>\"\",SUBTOTAL(3,$B$5:B6),\"\")","v":2},"طالب 2","ذكر","العام",116,246,null,null,null,null,null,null,"تقنية المعلومات",25," الرياضيات",91,"الفيزياء",80,null,null,null,null,"حاضر",null,null,{"$f":"(SUMPRODUCT(($G6:$V6<>\"\")*($G6:$V6<>\"غ\"))=SUMPRODUCT(($G6:$V6<>\"\")*($G6:$V6=\"غ\")))*1","v":0}]
[{"$f":"IF(B7<>\"\",SUBTOTAL(3,$B$5:B7),\"\")","v":3},"طالب 3","ذكر","العام",120,245,null,null,null,null,null,null,null,null,null,null,null,null,"الكيمياء",35,null,null,"حاضر",null,null,0]
[{"$f":"IF(B8<>\"\",SUBTOTAL(3,$B$5:B8),\"\")","v":4},"طالب 4","ذكر","العام",121,244,null,null,null,null,null,null,null,null," الرياضيات",65,"الفيزياء",55,null,null,null,null,"حاضر",null,null,0]
[{"$f":"IF(B9<>\"\",SUBTOTAL(3,$B$5:B9),\"\")","v":5},"طالب 5","ذكر","العام",122,243,null,null,null,null,null,null,"تقنية المعلومات","غ"," الرياضيات","غ",null,null,"الكيمياء","غ",null,null,"غائب",null,null,1]
[{"$f":"IF(B10<>\"\",SUBTOTAL(3,$B$5:B10),\"\")","v":6},"طالب 6","ذكر","العام",130,242,null,null,null,null,null,10,null,null,null,null,null,null,null,null,null,null,"حاضر",null,null,0]
[{"$f":"IF(B11<>\"\",SUBTOTAL(3,$B$5:B11),\"\")","v":7},"طالب 7","انثى","العام",146,241,null,null,null,null,null,null,"تقنية المعلومات",40,null,null,null,null,null,null,null,null,"حاضر",null,null,0]
[{"$f":"IF(B12<>\"\",SUBTOTAL(3,$B$5:B12),\"\")","v":8},"طالب 8","انثى","العام",156,240,null,null,null,null," اللغة الإنجليزية","غ",null,null," الرياضيات",88,"الفيزياء",75,null,null,null,null,"حاضر",null,null,0]
[{"$f":"IF(B13<>\"\",SUBTOTAL(3,$B$5:B13),\"\")","v":9},"طالب 9","انثى","العام",159,239,null,null,null,null,null,"غ",null,null,null,null,null,null,null,null,"الاحياء",30,"حاضر",null,null,0]
[{"$f":"IF(B14<>\"\",SUBTOTAL(3,$B$5:B14),\"\")","v":10},"طالب 10","ذكر","العام",161,238,null,"غ"," اللغة العربية","غ"," اللغة الإنجليزية","غ","تقنية المعلومات","غ"," الرياضيات","غ","الفيزياء",null,"الكيمياء",18,null,null,"حاضر",null,null,0]
[null,null,null,null,null,null,null,null,null,null,null,null,null,null,null,null,null,null,null,null,null,null,null,null,null,1]
[null,null,null,null,null,null,null,null,null,null,null,null,null,null,null,null,null,null,null,null,null,null,null,null,null,1]
[null,null,null,null,null,null,null,null,null,null,null,null,null,null,null,null,null,null,null,null,null,null,null,null,null,1]
[null,null,null,null,null,null,null,null,null,null,null,null,null,null,null,null,null,null,null,null,null,null,null,null,null,1]
[null,null,null,null,null,null,null,null,null,null,null,null,null,null,null,null,null,null,null,null,null,null,null,null,null,1]
[null,null,null,null,null,null,null,null,null,null,null,null,null,null,null,null,null,null,null,null,null,null,null,null,null,1]
[null,null,null,null,null,null,null,null,null,null,null,null,null,null,null,null,null,null,null,null,null,null,null,null,null,1]
[null,null,null,null,null,null,null,null,null,null,null,null,null,null,null,null,null,null,null,null,null,null,null,null,null,1]
[null,null,null,null,null,null,null,null,null,null,null,null,null,null,null,null,null,null,null,null,null,null,null,null,null,1]
[null,null,null,null,null,null,null,null,null,null,null,null,null,null,null,null,null,null,null,null,null,null,null,null,null,1]
[null,null,null,null,null,null,null,null,null,null,null,null,null,null,null,null,null,null,null,null,null,null,null,null,null,1]
[null,null,null,null,null,null,null,null,null,null,null,null,null,null,null,null,null,null,null,null,null,null,null,null,null,1]
[null,null,null,null,null,null,null,null,null,null,null,null,null,null,null,null,null,null,null,null,null,null,null,null,null,1]
[null,null,null,null,null,null,null,null,null,null,null,null,null,null,null,null,null,null,null,null,null,null,null,null,null,1]
[null,null,null,null,null,null,null,null,null,null,null,null,null,null,null,null,null,null,null,null,null,null,null,null,null,1]
[null,null,null,null,null,null,null,null,null,null,null,null,null,null,null,null,null,null,null,null,null,null,null,null,null,1]
[null,null,null,null,null,null,null,null,null,null,null,null,null,null,null,null,null,null,null,null,null,null,null,null,null,1]
[null,null,null,null,null,null,null,null,null,null,null,null,null,null,null,null,null,null,null,null,null,null,null,null,null,1]
[null,null,null,null,null,null,null,null,null,null,null,null,null,null,null,null,null,null,null,null,null,null,null,null,null,1]
[null,null,null,null,null,null,null,null,null,null,null,null,null,null,null,null,null,null,null,null,null,null,null,null,null,1]